Service Area,Expense Type,Date,Transaction Number,Amount,Supplier
Ww Landscape Partnership,Building & Room Rent,2010-04-22,5000073618,1000.0,South Wight Housing Assoc [Sb]
Ww Landscape Partnership,Professional Service,2010-04-27,5000074850,1030.0,Pepper Creative Ltd
Ww Landscape Partnership,Pay To Pvte Contract,2010-05-06,5000076508,2339.0,Hwtma
Ww Landscape Partnership,Professional Service,2010-06-08,5000082821,655.0,Pepper Creative Ltd
Ww Landscape Partnership,Pay To Pvte Contract,2010-06-29,5000087397,750.0,Redacted Personal Data
Ww Landscape Partnership,Professional Service,2010-06-30,5000087574,500.0,Redacted Personal Data
Ww Landscape Partnership,Professional Service,2010-07-01,5000087595,875.0,The Whale Workshop
Ww Landscape Partnership,General Materials,2010-07-01,5000087678,2200.0,R J Cook Ltd
Ww Landscape Partnership,Building & Room Rent,2010-07-06,5000088487,1000.0,South Wight Housing Assoc [Sb]
Ww Landscape Partnership,Grants To Ext Bodies,2010-07-20,1900203037,7500.0,Redacted Personal Data
Ww Landscape Partnership,Electricity,2010-07-23,1900208564,861.89,Edf Energy 1 Ltd
Ww Landscape Partnership,Pay To Pvte Contract,2010-07-28,5000093119,4200.0,Shore Women
Ww Landscape Partnership,Grants To Ext Bodies,2010-08-02,1900209349,700.0,Farringford Estates Ltd
Ww Landscape Partnership,Pay To Pvte Contract,2010-08-03,5000094121,3644.0,Hwtma
Ww Landscape Partnership,Professional Service,2010-08-03,5000094074,675.0,Redacted Personal Data
Ww Landscape Partnership,Grants To Ext Bodies,2010-08-04,1900210172,7500.0,Shalfleet Parish Council
Ww Landscape Partnership,Grants To Ext Bodies,2010-08-04,1900210209,2805.0,Isle Of Wight Ramblers
Ww Landscape Partnership,Grants To Ext Bodies,2010-08-04,1900210191,1701.0,The Red Squirrel Trust
Ww Landscape Partnership,Grants To Ext Bodies,2010-08-09,1900214375,615.0,Freshwater Parish Council
Ww Landscape Partnership,Pay To Pvte Contract,2010-08-10,5000095241,1500.0,Redacted Personal Data
Ww Landscape Partnership,Pay To Pvte Contract,2010-08-17,5105606915,530.58,Hants&Isle Of Wight Wildlife Trust
Ww Landscape Partnership,Pay To Pvte Contract,2010-08-17,5105606915,2979.42,Hants&Isle Of Wight Wildlife Trust
Ww Landscape Partnership,Pay To Pvte Contract,2010-08-20,5000097026,4255.32,National Trust
Ww Landscape Partnership,Pay To Pvte Contract,2010-08-20,5000097079,8673.0,National Trust
Ww Landscape Partnership,Professional Service,2010-08-25,5000097946,748.94,National Trust
Ww Landscape Partnership,Pay To Pvte Contract,2010-09-01,5105610622,1959.8,National Trust
Ww Landscape Partnership,Pay To Pvte Contract,2010-09-01,5105610622,2140.2,National Trust
Ww Landscape Partnership,Professional Service,2010-09-10,5000100726,-748.94,National Trust
Ww Landscape Partnership,Professional Service,2010-09-14,5000101259,4116.78,Footprint Trust
Ww Landscape Partnership,Professional Service,2010-09-16,5000101656,880.0,National Trust
Ww Landscape Partnership,Grants To Ext Bodies,2010-09-20,1900232917,7500.0,Hants&Isle Of Wight Wildlife Trust
Ww Landscape Partnership,Grants To Ext Bodies,2010-09-20,1900232919,1083.63,Independent Arts
Ww Landscape Partnership,Printing Costs,2010-09-21,5000102529,999.0,Crossprint Ltd
Ww Landscape Partnership,Pay To Pvte Contract,2010-09-21,5000102496,4975.0,Natural Enterprise Ltd
Ww Landscape Partnership,Pay To Pvte Contract,2010-09-22,5000102896,1100.0,Carisbrooke Castle Museum
Ww Landscape Partnership,Pay To Pvte Contract,2010-09-22,5000102660,4800.0,The Dollymopps
Ww Landscape Partnership,Pay To Pvte Contract,2010-09-28,5000103740,600.0,Nigel C George
Ww Landscape Partnership,Professional Service,2010-10-01,5000104483,652.5,Redacted Personal Data
Ww Landscape Partnership,Building & Room Rent,2010-10-06,5000105088,1000.0,South Wight Housing Association
Ww Landscape Partnership,Grants To Ext Bodies,2010-10-11,1900239775,4371.5,Turneys Farming
Ww Landscape Partnership,Pay To Pvte Contract,2010-10-13,5000106464,1034.17,Fire Island Limited
Ww Landscape Partnership,Pay To Pvte Contract,2010-10-13,5000106462,3050.0,Redacted Personal Data
Ww Landscape Partnership,Advertising & Public,2010-11-01,5000110088,528.0,Ventnorblog
Ww Landscape Partnership,Grants To Ext Bodies,2010-11-04,1900252828,971.5,Freshwater Parish Council
Ww Landscape Partnership,Grants To Ext Bodies,2010-11-04,1900252813,700.0,Freshwater Parish Council
Ww Landscape Partnership,Grants To Ext Bodies,2010-11-04,1900252811,5376.0,National Trust
Ww Landscape Partnership,Grants To Ext Bodies,2010-11-04,1900252797,3486.0,National Trust
Ww Landscape Partnership,Grants To Ext Bodies,2010-11-04,1900252814,1892.0,National Trust
Ww Landscape Partnership,Pay To Pvte Contract,2010-11-05,5000111079,800.0,Potting Shed Cartoons
Ww Landscape Partnership,Highways Minor Works,2010-11-05,5000111114,585.0,Pepper Creative Ltd
Ww Landscape Partnership,Pay To Pvte Contract,2010-11-05,5000111083,2339.0,Hwtma
Ww Landscape Partnership,Grants To Ext Bodies,2010-11-09,1900253791,1200.0,Salisbury Int. Arts Fest.
Ww Landscape Partnership,Grants To Ext Bodies,2010-11-09,1900253789,795.0,Wight Nature Fund
Ww Landscape Partnership,Pay To Pvte Contract,2010-11-25,5000114336,4975.0,Natural Enterprise Ltd
Ww Landscape Partnership,Pay To Pvte Contract,2010-11-25,5000114379,525.0,Peoples Trust Endangered Species
Ww Landscape Partnership,Pay To Pvte Contract,2010-11-26,5000114563,967.5,Potting Shed Cartoons
Ww Landscape Partnership,Pay To Pvte Contract,2010-12-09,5000116345,5000.0,Challenge & Adventure Ltd
Ww Landscape Partnership,Pay To Pvte Contract,2010-12-14,5000117199,885.0,Pepper Creative Ltd
Ww Landscape Partnership,Pay To Pvte Contract,2010-12-14,5000117007,1605.0,Redacted Personal Data
Ww Landscape Partnership,Building & Room Rent,2011-01-06,5000119939,1000.0,Shg   Residential [Sb]
Ww Landscape Partnership,Grants To Ext Bodies,2011-01-07,1900283989,5000.0,Hants&Isle Of Wight Wildlife Trust
Ww Landscape Partnership,Transport Of Clients,2011-01-11,5000120872,550.0,Southern Vectis Omnibus Co Ltd
Ww Landscape Partnership,Pay To Pvte Contract,2011-01-11,5000120831,5106.38,National Trust
Ww Landscape Partnership,Pay To Pvte Contract,2011-01-27,5000123658,4238.0,Hwtma
Ww Landscape Partnership,Printing Costs,2011-02-01,5000124429,985.0,Pepper Creative Ltd
Ww Landscape Partnership,Professional Service,2011-02-02,5000124727,795.0,Redacted Personal Data
Ww Landscape Partnership,Grants To Ext Bodies,2011-02-07,1900297296,2645.49,Yarmouth Town Council
Ww Landscape Partnership,Pay To Pvte Contract,2011-02-15,5000127152,3000.0,Redacted Personal Data
Ww Landscape Partnership,Printing Costs,2011-02-16,5000127475,6230.0,Hants&Isle Of Wight Wildlife Trust
Ww Landscape Partnership,Pay To Pvte Contract,2011-02-17,5105646075,1558.58,Hants&Isle Of Wight Wildlife Trust
Ww Landscape Partnership,Pay To Pvte Contract,2011-02-22,5000128438,1650.0,Redacted Personal Data
Ww Landscape Partnership,Pay To Pvte Contract,2011-02-25,5000129197,2412.0,National Trust
Ww Landscape Partnership,Pay To Pvte Contract,2011-02-25,5000129175,7000.0,Natural Enterprise Ltd
Ww Landscape Partnership,Pay To Pvte Contract,2011-03-01,5000129580,1605.0,Redacted Personal Data
Ww Landscape Partnership,Grants To Ext Bodies,2011-03-08,1900310698,2218.0,Totland Parish Council
Ww Landscape Partnership,Printing Costs,2011-03-08,5000130749,-6230.0,Hants&Isle Of Wight Wildlife Trust
Ww Landscape Partnership,Grants To Ext Bodies,2011-03-08,1900310697,1831.5,Friends Of St Saviours
Ww Landscape Partnership,Pay To Pvte Contract,2011-03-15,5000131878,1698.0,Arien Signs
Ww Landscape Partnership,Grants To Ext Bodies,2011-03-15,1900311354,700.0,Freshwater Village Association
Ww Landscape Partnership,Grants To Ext Bodies,2011-03-15,1900311352,1827.0,Hwtma
Ww Landscape Partnership,Grants To Ext Bodies,2011-03-15,1900311382,6075.0,Hants&Isle Of Wight Wildlife Trust
Ww Landscape Partnership,Pay To Pvte Contract,2011-03-17,5000132589,4781.25,Hants&Isle Of Wight Wildlife Trust
Ww Landscape Partnership,Grants To Ext Bodies,2011-03-21,1900316972,1776.0,Brighstone School Association
Ww Landscape Partnership,Pay To Pvte Contract,2011-03-22,5000133204,1677.36,Redacted Personal Data
Ww Landscape Partnership,Pay To Pvte Contract,2011-03-22,5000133194,3644.0,Hwtma
Ww Landscape Partnership,Pay To Pvte Contract,2011-03-23,5000133327,3000.0,Redacted Personal Data
Ww Landscape Partnership,Pay To Pvte Contract,2011-03-23,5000133473,1200.0,Redacted Personal Data
Ww Landscape Partnership,Pay To Pvte Contract,2011-03-24,5000133664,3000.0,The Dollymopps
Ww Landscape Partnership,Pay To Pvte Contract,2011-03-25,5000133830,7040.0,Hants&Isle Of Wight Wildlife Trust
Ww Landscape Partnership,Grants To Ext Bodies,2011-03-28,1900318171,1500.0,Yarmouth (Iw) Harbour Commissioners
Ww Landscape Partnership,Printing Costs,2011-03-29,5000134272,6955.0,Hants&Isle Of Wight Wildlife Trust
Ww Landscape Partnership,Pay To Pvte Contract,2011-03-31,5000135151,7374.0,Hants&Isle Of Wight Wildlife Trust
Ww Landscape Partnership,Professional Service,2011-04-01,5000135437,3970.0,Footprint Trust
Ww Landscape Partnership,Pay To Pvte Contract,2011-04-01,5000135439,1125.0,Footprint Trust
Ww Landscape Partnership,Grants To Ext Bodies,2011-04-05,1900324556,877.5,National Trust
Ww Landscape Partnership,Printing Costs,2011-04-07,5000136150,1338.0,West Three Colour Ltd
Ww Landscape Partnership,Pay To Pvte Contract,2011-04-07,5000136145,650.0,Clifford J. Matthews Ltd
Ww Landscape Partnership,Building & Room Rent,2011-04-28,5000139113,1000.0,Southern Housing Group Ltd
Ww Landscape Partnership,Grants To Ext Bodies,2011-04-28,1900336947,4386.65,Shalfleet Parocial Church Council
Ww Landscape Partnership,Pay To Pvte Contract,2011-04-28,5000139121,3500.0,Redacted Personal Data
Ww Landscape Partnership,Pay To Pvte Contract,2011-05-03,5000139247,722.64,Redacted Personal Data
Ww Landscape Partnership,Grants To Ext Bodies,2011-05-10,1900337851,1629.9,The Red Squirrel Trust
Ww Landscape Partnership,Pay To Pvte Contract,2011-05-17,5000141638,550.0,Growing Ideas Limited
Ww Landscape Partnership,Grants To Ext Bodies,2011-05-19,1900343766,3724.0,National Trust
Ww Landscape Partnership,Printing Costs,2011-05-19,5000142101,1224.0,Yarmouth (Iw) Harbour Commissioners
Ww Landscape Partnership,Pay To Pvte Contract,2011-06-07,5000144503,1800.0,The Dollymopps
Ww Landscape Partnership,Pay To Pvte Contract,2011-06-09,5000144784,1650.0,Redacted Personal Data
Ww Landscape Partnership,Building & Room Rent,2011-06-23,5000147065,1000.0,Southern Housing Group Ltd
Ww Landscape Partnership,Grants To Ext Bodies,2011-07-14,1900369521,2800.0,Island 2000 Trust
Ww Landscape Partnership,Grants To Ext Bodies,2011-07-14,1900369529,700.0,Freshwater Parish Council
Ww Landscape Partnership,Pay To Pvte Contract,2011-07-20,5000151204,630.0,Potting Shed Cartoons
Ww Landscape Partnership,Grants To Ext Bodies,2011-07-20,1900370023,6500.0,Yarmouth Town Council
Ww Landscape Partnership,Pay To Pvte Contract,2011-07-26,5000151720,1000.0,Redacted Personal Data
Ww Landscape Partnership,Grants To Ext Bodies,2011-07-26,1900375825,1336.0,Brighstone School Association
Ww Landscape Partnership,Grants To Ext Bodies,2011-07-26,1900375826,1200.0,Salisbury Int. Arts Fest.
Ww Landscape Partnership,Printing Costs,2011-08-03,5000152814,1055.0,Pepper Creative Ltd
Ww Landscape Partnership,Pay To Pvte Contract,2011-08-03,5000152817,885.0,Pepper Creative Ltd
Ww Landscape Partnership,Pay To Pvte Contract,2011-08-09,5000153312,2800.0,Redacted Personal Data
Ww Landscape Partnership,Pay To Pvte Contract,2011-08-11,5000153655,1885.0,Tombleson Associates
Ww Landscape Partnership,Grants To Ext Bodies,2011-08-11,1900381862,5058.0,Island Cottages Ltd
Ww Landscape Partnership,Grants To Ext Bodies,2011-08-11,1900381841,700.0,Farringford Estates Ltd
Ww Landscape Partnership,Operational Equipmen,2011-08-12,5000153965,811.23,Footprint Trust
Ww Landscape Partnership,Grants To Ext Bodies,2011-08-17,1900382921,1818.0,Hwtma
Ww Landscape Partnership,Grants To Ext Bodies,2011-08-24,1900388209,4371.5,Turneys Farming
Ww Landscape Partnership,Grants To Ext Bodies,2011-08-24,1900388208,1000.0,Redacted Personal Data
Ww Landscape Partnership,Grants To Ext Bodies,2011-08-24,1900388196,4925.0,Freshwater Parish Council
Ww Landscape Partnership,Grants To Ext Bodies,2011-08-31,1900388815,5000.0,Seely Hall Fund
Ww Landscape Partnership,Grants To Ext Bodies,2011-08-31,1900388802,4300.0,Julia Margaret Cameron Trust
Ww Landscape Partnership,Pay To Pvte Contract,2011-09-06,5000157066,510.0,Pinkeye Graphics Ltd
Ww Landscape Partnership,Grants To Ext Bodies,2011-09-07,1900394095,546.0,Freshwater Bay Residents Assoc.
Ww Landscape Partnership,Pay To Pvte Contract,2011-09-07,5000157264,4238.0,Hwtma
Ww Landscape Partnership,Grants To Ext Bodies,2011-09-07,1900394097,4383.0,Hants&Isle Of Wight Wildlife Trust
Ww Landscape Partnership,Grants To Ext Bodies,2011-09-07,1900394098,613.0,Footprint Trust
Ww Landscape Partnership,Grants To Ext Bodies,2011-09-20,1900400307,690.0,Freshwater Village Association
Ww Landscape Partnership,Building & Room Rent,2011-10-04,5000161230,1000.0,Southern Housing Group Ltd
Ww Landscape Partnership,Grants To Ext Bodies,2011-10-13,5000162997,555.0,Hants&Isle Of Wight Wildlife Trust
Ww Landscape Partnership,Pay To Pvte Contract,2011-10-25,5000163660,673.84,Shore Women
Ww Landscape Partnership,Pay To Pvte Contract,2011-10-25,5000163663,3000.0,Nigel C George
Ww Landscape Partnership,Grants To Ext Bodies,2011-10-26,1900418538,4187.0,Hants&Isle Of Wight Wildlife Trust
Ww Landscape Partnership,Grants To Ext Bodies,2011-10-26,1900418566,6000.0,Redacted Personal Data
Ww Landscape Partnership,Pay To Pvte Contract,2011-11-08,5000165500,1123.2,G J Banks (Iw) Ltd
Ww Landscape Partnership,Pay To Pvte Contract,2011-11-08,5000165467,3666.1,G J Banks (Iw) Ltd
Ww Landscape Partnership,Grants To Ext Bodies,2011-11-09,1900420321,2317.67,Hants&Isle Of Wight Wildlife Trust
Ww Landscape Partnership,Grants To Ext Bodies,2011-11-09,1900422419,1832.0,Isle Of Wight Ramblers
Ww Landscape Partnership,Printing Costs,2011-11-15,5000167158,2071.5,Pepper Creative Ltd
Ww Landscape Partnership,Printing Costs,2011-11-15,5000167113,634.0,Pepper Creative Ltd
Ww Landscape Partnership,Pay To Pvte Contract,2011-11-22,5000168205,1250.0,Redacted Personal Data
Ww Landscape Partnership,Pay To Pvte Contract,2011-11-22,5000168206,1250.0,Redacted Personal Data
Ww Landscape Partnership,Grants To Ext Bodies,2011-11-23,1900426640,4368.0,Seely Hall Fund
Ww Landscape Partnership,Grants To Ext Bodies,2011-11-23,1900426641,1323.68,Friends Of St Saviours
Ww Landscape Partnership,Training,2011-11-24,5000168610,2200.0,University Of Bath
Ww Landscape Partnership,Pay To Pvte Contract,2011-11-25,5000168852,1380.0,Tombleson Associates
Ww Landscape Partnership,Pay To Pvte Contract,2011-12-02,5000169722,967.5,Potting Shed Cartoons
Ww Landscape Partnership,Pay To Pvte Contract,2011-12-02,5000169723,725.0,Potting Shed Cartoons
Ww Landscape Partnership,Printing Costs,2011-12-02,5000169797,-2071.5,Pepper Creative Ltd
Ww Landscape Partnership,Pay To Pvte Contract,2011-12-06,5000170085,1381.0,Pepper Creative Ltd
Ww Landscape Partnership,Grants To Ext Bodies,2011-12-07,1900438215,3948.0,Island Cottages Ltd
Ww Landscape Partnership,Pay To Pvte Contract,2011-12-16,5000172554,700.0,Redacted Personal Data
Ww Landscape Partnership,Pay To Pvte Contract,2011-12-16,5000172570,990.0,Redacted Personal Data
Ww Landscape Partnership,Building & Room Rent,2011-12-20,5000172843,1000.0,Southern Housing Group Ltd
